[Event "Memorial Ukrainian Chess Warriors 2024"]
[Site "Lviv"]
[Date "2024.03.15"]
[Round "4.6"]
[White "Andrienko, Artem"]
[Black "Sakun, Volodymyr"]
[Result "0-1"]
[ECO "A10"]
[WhiteElo "2041"]
[BlackElo "2301"]
[Annotator "TA"]
[PlyCount "81"]
[EventDate "2024.03.06"]
[EventType "swiss"]
[EventCountry "UKR"]
[SourceTitle "playchess.com"]
[Source "ChessBase"]
[SourceQuality "1"]
[TimeControl "600+5"]

{[%evp 15,81,12,17,14,19,16,10,17,31,0,4,0,0,-29,0,-46,-29,-32,-27,-39,-29,-31,-22,-37,-37,-28,-32,-35,-19,-77,-81,-126,-34,-20,-33,-46,-34,-40,-44,-50,-39,-46,-51,-63,-61,-83,-41,-56,-42,-68,-59,-126,-131,-151,-102,-162,-164,-255,-155,-417,-143,-614,-635,-808,-808,-29984,-29985,-5514]} 1. c4 {[%emt 0:00:02]} d6 {[%emt 0:00:05]} 2. Nc3 {[%emt 0:00:06]} Nd7 {[%emt 0:00:06]} 3. g3 {[%emt 0:00:05]} g6 {[%emt 0:00:03]} 4. Bg2 {[%emt 0:00:04]} Bg7 {[%emt 0:00:01]} 5. Nf3 {[%emt 0:00:13]} Ngf6 {[%emt 0:00:02]} 6. d3 {[%emt 0:00:27]} O-O {[%emt 0:00:10]} 7. O-O {[%emt 0:00:03]} e5 {[%emt 0:01:08]} 8. Rb1 {[%emt 0:00:01]} Re8 {[%emt 0:00:39]} 9. b4 {[%emt 0:00:37]} e4 {[%emt 0:01:05]} 10. Nxe4 {[%emt 0:00:02]} Nxe4 {[%emt 0:00:01]} 11. dxe4 {[%emt 0:00:02] The position is equal.} Rxe4 {[%emt 0:00:07][%cal Oa7a5]} 12. Ng5 {[%emt 0:01:13]} Re8 {[%emt 0:00:43]} 13. Bd5 {[%emt 0:01:15]} Rf8 {[%emt 0:00:20]} 14. c5 {[%emt 0:01:45]} Nf6 {[%emt 0:00:32]} 15. Bb3 {[%emt 0:03:36]} (15. Bg2 $11 {is superior.}) 15... d5 {[%emt 0:00:12]} 16. Bb2 {[%emt 0:00:08]} c6 {[%emt 0:00:35]} 17. Qd2 {[%emt 0:00:15]} h6 {[%emt 0:01:00]} 18. Nf3 {[%emt 0:00:12]} a5 {[%emt 0:00:46]} 19. a3 {[%emt 0:00:10][%cal Ob4b5]} axb4 {[%emt 0:00:03]} 20. axb4 {[%emt 0:00:01]} Bh3 {[%emt 0:00:14]} 21. Rfd1 {[%emt 0:00:05]} Qe7 {[%emt 0:00:32]} 22. Ra1 {[%emt 0:00:52]} (22. Qc3 $11) 22... Ne4 {[%emt 0:01:03]} (22... Rxa1 {simplifies} 23. Rxa1 Re8 24. Nd4 Ne4) 23. Qc1 {[%emt 0:00:02] [#]} Rfe8 {[%emt 0:01:00]} ({Better is} 23... Ng5 $1 $17 24. Nxg5 hxg5 25. Bxg7 Qe4 (25... Kxg7 26. Qc3+ Kh7 27. Qd2 $17)) 24. Rxa8 {[%emt 0:00:16]} Rxa8 {[%emt 0:00:01]} 25. Bxg7 Kxg7 {[%emt 0:00:01]} 26. Nd4 {[%emt 0:00:22]} Qf6 {[%emt 0:00:17]} 27. f3 {[%emt 0:00:05]} Ng5 {[%emt 0:00:02]} 28. Kf2 {[%emt 0:00:06]} Ne6 {[%emt 0:00:24]} 29. Nxe6+ {[%emt 0:00:02]} Bxe6 {[%emt 0:00:08]} 30. b5 {[%emt 0:00:04]} Qe5 {[%emt 0:00:37]} 31. bxc6 {[%emt 0:00:02]} bxc6 {[%emt 0:00:01]} 32. h4 {[%emt 0:00:05]} Ra5 {[%emt 0:00:20]} 33. Qc2 {[%emt 0:00:09]} (33. e3 $15) 33... Bf5 $17 {[%emt 0:00:06]} 34. Qc1 {[%emt 0:00:07] [#] White is weak on the light squares} Kg8 {[%emt 0:00:18] Black is more active.} (34... h5 $142 $1 35. f4 Qf6 36. Bxd5 cxd5 37. Rxd5 Ra2) 35. h5 {[%emt 0:00:05]} (35. Rd2 $17) 35... g5 $19 {[%emt 0:00:02]} ({Don't take} 35... gxh5 36. Qxh6 Bg6 37. Bc4 $15) 36. f4 {[%emt 0:00:17]} (36. Rd2 $142) 36... Qe7 {[%emt 0:00:06] ...Rb5 is the strong threat.} 37. e3 $2 {[%emt 0:00:06]} (37. Rd4 $17 {might work better.}) 37... Qxc5 $2 {[%emt 0:00:02]} (37... Rxc5 $19 {and Black stays clearly on top.} 38. Qd2 Qb7) 38. Qd2 {[%emt 0:00:04][%mdl 8192] Now White is beyond hope.} (38. Qxc5 $17 Rxc5 39. Ra1) 38... Ra3 {[%emt 0:00:04]} 39. Qb2 {[%emt 0:00:07]} Qb4 {[%emt 0:00:06]} 40. Qf6 {[%emt 0:00:06]} Qxb3 {[%emt 0:00:04]} 41. Qd4 {Weighted Error Value: White=0.67/Black=0.27 (precise) .  Loses game:     	White=2     	---        Missed win:     	---       	Black=1      Mistake:       	White=5     	Black=2      Inaccurate:     	White=4     	Black=3      OK:         	White=5     	Black=8      Best:        	---       	Black=1} 0-1

[Event "Memorial Ukrainian Chess Warriors 2024"]
[Site "Lviv"]
[Date "2024.03.15"]
[Round "4.7"]
[White "Dehtiarov, Roman"]
[Black "Hychkevych, Vitaliy"]
[Result "1-0"]
[ECO "B23"]
[WhiteElo "2319"]
[BlackElo "1550"]
[Annotator "TA"]
[PlyCount "51"]
[EventDate "2024.03.06"]
[EventType "swiss"]
[EventCountry "UKR"]
[SourceTitle "playchess.com"]
[Source "ChessBase"]
[SourceQuality "1"]
[TimeControl "600+5"]

{[%evp 13,51,0,0,0,0,8,6,0,0,3,0,18,55,52,51,45,66,32,181,155,158,47,41,67,334,325,326,337,29994,29995,29995,29996,29996,29997,29997,6491,29988,29989,1983,1984]} 1. e4 {[%emt 0:00:02]} c5 {[%emt 0:00:01]} 2. Nc3 {[%emt 0:00:06]} e6 {[%emt 0:00:01]} 3. f4 {[%emt 0:00:01]} Nc6 {[%emt 0:00:03]} 4. Nf3 {[%emt 0:00:01]} d6 {[%emt 0:00:11]} 5. Bb5 {[%emt 0:00:18]} Bd7 {[%emt 0:00:05]} 6. O-O {[%emt 0:00:08]} Be7 {[%emt 0:00:05]} 7. d3 {[%emt 0:00:48]} Nf6 {[%emt 0:00:18]} 8. e5 {[%emt 0:00:30]} dxe5 {[%emt 0:00:26]} 9. fxe5 {[%emt 0:00:06]} Nd5 {[%emt 0:00:02]} 10. Ne4 {[%emt 0:00:52] The position is equal.} O-O {[%emt 0:00:14][%cal Oc6e5]} 11. c4 {[%emt 0:00:27]} Nc7 {[%emt 0:00:10]} 12. Ba4 {[%emt 0:00:07]} Nd4 {[%emt 0:00:22]} 13. Bxd7 {[%emt 0:00:50]} Qxd7 {[%emt 0:00:03]} 14. Be3 {[%emt 0:00:04]} b5 {[%emt 0:03:15]} 15. b3 {[%emt 0:01:01]} Na6 {[%emt 0:00:41]} (15... Nf5 $14 16. Bf2 (16. Bxc5 Bxc5+ 17. Nxc5 Qc6 $11) (16. Nxc5 $2 Qc6 $19) 16... Na6) 16. Nxd4 $18 {[%emt 0:02:26]} cxd4 {[%emt 0:00:02]} 17. Bg5 {[%emt 0:00:02] White is more active.} (17. Bc1 $16) 17... Bxg5 $14 {[%emt 0:00:35]} 18. Nxg5 {[%emt 0:00:02] Qg4 is the strong threat.} bxc4 $2 {[%emt 0:00:43][%mdl 8192] [#]} (18... Nc5 $14) 19. Qh5 $1 $18 {[%emt 0:00:47][%csl Gg5][%cal Rh5h7]} h6 {[%emt 0:01:21]} (19... cxd3 20. Qxh7#) 20. Ne4 {[%emt 0:00:01][%cal Oe4f6] Hoping for Nf6+!} Kh8 $2 {[%emt 0:00:10] [#]} (20... cxd3 $2 {too greedy.} 21. Nf6+ Kh8 22. Nxd7 $18) (20... Qb5 $18 21. dxc4 (21. bxc4 Qb2 $18) 21... Qa5) 21. Rf6 $3 {[%emt 0:00:14][%mdl 512]} Kh7 {[%emt 0:01:52] [#]} (21... Qe7 22. Rxh6+) 22. Rxh6+ $3 {[%emt 0:00:04][%mdl 512]} gxh6 {[%emt 0:00:00]} 23. Nf6+ {[%emt 0:00:01]} ({Not} 23. bxc4 Kg7 $16) 23... Kg7 {[%emt 0:00:01]} 24. Nxd7 {[%emt 0:00:05]} (24. Qg4+ $142 Kh8 25. Qe4 cxd3 26. Qh7#) 24... Rfd8 {[%emt 0:00:01]} 25. Qg4+ {[%emt 0:00:38]} Kh8 {[%emt 0:00:21]} 26. Qf3 {[%emt 0:00:01] Weighted Error Value: White=0.12 (very precise) /Black=1.00.  Loses game:     	---       	Black=1      Mistake:       	White=1     	Black=2      Inaccurate:     	White=1     	Black=1      OK:         	White=2     	Black=3      Best:        	White=3     	Black=2      Strong:       	White=1     	---        Brilliant:      	White=1     	---} 1-0

[Event "Memorial Ukrainian Chess Warriors 2024"]
[Site "Lviv"]
[Date "2024.03.15"]
[Round "4.8"]
[White "Bagiryan, Vigen"]
[Black "Semenov, Dmytro"]
[Result "1-0"]
[ECO "C95"]
[WhiteElo "1969"]
[BlackElo "2370"]
[Annotator "TA"]
[PlyCount "167"]
[EventDate "2024.03.06"]
[EventType "swiss"]
[EventCountry "UKR"]
[SourceTitle "playchess.com"]
[Source "ChessBase"]
[SourceQuality "1"]
[TimeControl "600+5"]

{[%evp 21,167,33,34,-20,-28,-19,-13,-13,-18,-39,-32,-42,0,-60,0,-39,-29,-30,-43,-39,-37,-79,-30,-39,-38,-49,-35,-55,-53,-85,-57,-82,-94,-80,-79,-115,-99,-153,-152,-151,-148,-145,-154,-166,-152,-147,-155,-147,-150,-299,-301,-294,-317,-320,-309,-331,-98,-103,-92,-212,-209,-189,-113,-113,-113,-113,-113,-113,-113,-113,-72,-89,0,0,0,0,0,0,0,-18,-18,-80,-80,-80,0,-16,-11,-18,-8,-18,-8,-59,-72,-88,-89,-116,9,9,77,77,77,77,77,0,77,77,77,77,77,77,77,77,77,77,77,77,77,54,77,77,77,8,77,77,77,77,1773,941,29949,29952,29946,29951,29943,29944,29944,12839,11597,12842,29962,29965,29980,29964,29963,29962,12084,4606,29980,29979]} 1. e4 {[%emt 0:00:03]} e5 {[%emt 0:00:03]} 2. Nf3 {[%emt 0:00:02]} Nc6 {[%emt 0:00:01]} 3. Bb5 {[%emt 0:00:04]} a6 {[%emt 0:00:03]} 4. Ba4 {[%emt 0:00:06]} Nf6 {[%emt 0:00:17]} 5. O-O {[%emt 0:00:23]} Be7 {[%emt 0:00:07]} 6. Re1 {[%emt 0:00:49]} b5 {[%emt 0:00:04]} 7. Bb3 {[%emt 0:00:01]} O-O {[%emt 0:00:08]} 8. c3 {[%emt 0:00:09]} d6 {[%emt 0:00:02]} 9. h3 {[%emt 0:00:07]} Nb8 {[%emt 0:00:10][%cal Bc6b8,Bb8d7,Bd7c5][%mdl 32]} 10. d4 {[%emt 0:00:09]} Nbd7 {[%emt 0:00:02]} 11. Nbd2 {[%emt 0:00:06]} Bb7 {[%emt 0:00:10]} 12. d5 {[%emt 0:00:15]} (12. Bc2 $14) 12... c6 $11 {[%emt 0:00:22]} 13. dxc6 $1 {[%emt 0:00:14]} Bxc6 {[%emt 0:00:01]} 14. Bc2 {[%emt 0:00:05] The position is equal.} Nc5 {[%emt 0:00:41]} 15. Qe2 {[%emt 0:00:11]} Qc7 {[%emt 0:01:04]} 16. Nh2 {[%emt 0:00:33]} Qb7 {[%emt 0:00:33]} 17. f3 {[%emt 0:00:57]} (17. Nb3 $11) 17... Qa7 {[%emt 0:01:11]} (17... Nh5 $15 18. Ndf1 Nf4 19. Bxf4 exf4) 18. Kh1 {[%emt 0:00:24]} Nh5 {[%emt 0:01:10]} 19. Ndf1 {[%emt 0:00:00] Dodges Ng3+} Nf4 {[%emt 0:00:15]} 20. Bxf4 {[%emt 0:00:43]} exf4 {[%emt 0:00:02]} 21. Ng4 {[%emt 0:00:05]} h5 {[%emt 0:00:25]} (21... Bh4 $17 22. Red1 Rad8) 22. Nf2 $1 {[%emt 0:00:03]} (22. Nh6+ $2 gxh6 23. Rad1 Qc7 $19) 22... Bf6 $36 {[%emt 0:00:07][%mdl 2048] Black has the initiative.} 23. Nd3 {[%emt 0:00:10]} Nxd3 {[%emt 0:00:35]} 24. Qxd3 {[%emt 0:00:02]} Be5 {[%emt 0:00:02]} 25. Rad1 {[%emt 0:00:19]} Rab8 {[%emt 0:00:37]} 26. a3 {[%emt 0:00:03]} a5 {[%emt 0:00:03]} 27. Bb3 {[%emt 0:00:17]} b4 {[%emt 0:00:14]} 28. axb4 {[%emt 0:00:06]} axb4 {[%emt 0:00:01]} 29. Bd5 {[%emt 0:00:24]} (29. Nd2 $142) 29... Bxd5 $17 {[%emt 0:00:18]} 30. exd5 {[%emt 0:00:11]} bxc3 {[%emt 0:00:04]} 31. bxc3 {[%emt 0:00:00] White is weak on the dark squares} Rb3 {[%emt 0:00:50]} 32. Rc1 {[%emt 0:00:04]} Rc8 {[%emt 0:00:18]} 33. Qf5 {[%emt 0:00:03]} Rcxc3 {[%emt 0:00:18] ...Qf2 is the strong threat.} (33... Rbxc3 34. Rxc3 Rxc3 35. Qxh5 $17) 34. Qxh5 {[%emt 0:01:38]} Qf2 {[%emt 0:00:20] Against Nd2} 35. Rcd1 {[%emt 0:00:11]} (35. Rxc3 $17 Rxc3 36. Ra1) 35... g6 $19 {[%emt 0:00:09]} 36. Qg4 {[%emt 0:00:04]} Rc2 {[%emt 0:00:23] Prevents Nd2} 37. Nh2 {[%emt 0:00:25]} Rbb2 {[%emt 0:00:19][%cal Og8g7]} 38. Rg1 {[%emt 0:00:08]} Rd2 $2 {[%emt 0:00:06]} (38... Kg7 $19 {and Black stays clearly on top. ...f5 would now be deadly.} 39. h4 Qg3 40. Qxg3 fxg3) 39. Rxd2 {[%emt 0:00:05]} Qxd2 {[%emt 0:00:04]} (39... Rxd2 {feels hotter.} 40. Qc8+ Kg7 41. Ng4 Qd4) 40. Qc8+ {[%emt 0:00:02]} (40. Qh4 $17) 40... Kg7 {[%emt 0:00:01]} 41. Qc1 {[%emt 0:00:35]} Qxd5 {[%emt 0:00:02]} (41... Ra2 $19 42. Qxd2 Rxd2) 42. Ng4 $17 {[%emt 0:00:04]} Re2 {[%emt 0:00:31]} 43. Rd1 {[%emt 0:00:13]} Qa2 {[%emt 0:00:02]} 44. Nxe5 {[%emt 0:00:13]} dxe5 {[%emt 0:00:30][%mdl 4096] Endgame. KQR-KQR} 45. Rg1 {[%emt 0:00:01]} g5 {[%emt 0:00:22]} 46. Qc5 {[%emt 0:00:09]} Kg6 {[%emt 0:00:07]} ({Better is} 46... Qc2 $1 $17 {[%cal Rc2c5]} 47. Qe7 Qf5) 47. Qf8 $11 {[%emt 0:00:03]} e4 {[%emt 0:00:04]} 48. Qg8+ {[%emt 0:00:03]} Kf6 {[%emt 0:00:02]} 49. Qd8+ {[%emt 0:00:06]} Kf5 {[%emt 0:00:11]} 50. Qd7+ {[%emt 0:00:17]} Kg6 {[%emt 0:00:04]} 51. fxe4 (51. h4 $1 $11) 51... Rxe4 {[%emt 0:00:09]} 52. Qd8 {[%emt 0:00:27]} Re2 {[%emt 0:00:02]} (52... f6 $1 $17) 53. Qd3+ {[%emt 0:00:04]} Kg7 {[%emt 0:00:03]} 54. Qd4+ {[%emt 0:00:02]} Kh7 {[%emt 0:00:07]} 55. Qd3+ {[%emt 0:00:09]} Kh6 {[%emt 0:00:00]} 56. Qd4 {[%emt 0:00:08]} (56. Qd8 $11) 56... Qb2 $15 {[%emt 0:00:07]} 57. Qc4 {[%emt 0:00:12]} Kg7 {[%emt 0:00:04][%cal Of4f3] And now ...f3! would win.} 58. Qd5 {[%emt 0:00:07]} Rf2 {[%emt 0:00:02]} (58... Re5 $17 59. Qd1 Qf2) 59. Qxg5+ $11 {[%emt 0:00:02]} Kf8 {[%emt 0:00:02]} (59... Kh7 $1 $11) 60. Rd1 $16 {[%emt 0:00:09]} Rd2 {[%emt 0:00:08]} 61. Qh6+ {[%emt 0:00:05]} Kg8 {[%emt 0:00:05]} 62. Qg5+ {[%emt 0:00:04]} ({White should play} 62. Re1 $16 {[%cal Re1e8]} Re2 63. Rxe2 (63. Qg5+ Kf8 $14) 63... Qxe2 64. Qxf4) 62... Kh7 {[%emt 0:00:07]} (62... Kf8 $11 {remains equal.} 63. Qh6+ Kg8 64. Qg5+ Kf8) 63. Rf1 {[%emt 0:00:16]} Qg7 {[%emt 0:00:16]} 64. Qxg7+ $1 {[%emt 0:00:14]} (64. Qxf4 $2 Qxg2#) 64... Kxg7 {[%emt 0:00:00]} 65. Rxf4 {[%emt 0:00:01] KR-KR} Kg6 {[%emt 0:00:05]} 66. Kh2 {[%emt 0:00:05]} f5 {[%emt 0:00:17]} 67. Kg3 {[%emt 0:00:06]} Rd3+ {[%emt 0:00:05]} 68. Rf3 {[%emt 0:00:02]} Rd2 {[%emt 0:00:01]} 69. Ra3 {[%emt 0:00:03]} Kg5 {[%emt 0:00:04]} 70. h4+ {[%emt 0:00:32]} Kh5 {[%emt 0:00:01]} 71. Kh3 {[%emt 0:00:02]} (71. Rf3 $16 Kg6 72. Ra3) 71... Rd4 {[%emt 0:00:06]} (71... f4 $1 $11 {keeps the balance.}) 72. g3 $1 {[%emt 0:00:03][%cal Bg2g3,Bg3g4,Bg4g5][%mdl 32]} Rd5 {[%emt 0:00:18]} 73. Ra8 {[%emt 0:00:10]} Rc5 $2 {[%emt 0:00:05][%mdl 8192] [#]} (73... Rd3 $16) 74. Rg8 $1 $18 {[%emt 0:00:02] Strongly threatening Rg5+.} f4 {[%emt 0:00:17] [#]} 75. g4+ $1 {[%emt 0:00:07]} ({Not} 75. gxf4 Rc3+ 76. Rg3 Rc2 $14) 75... Kh6 {[%emt 0:00:02]} 76. g5+ {[%emt 0:00:05]} Kh5 {[%emt 0:00:09]} 77. Rh8+ {[%emt 0:00:01]} Kg6 {[%emt 0:00:01]} 78. Rh6+ {[%emt 0:00:02]} (78. Kg4 $142 f3 79. Rh6+ (79. Kxf3 Rc3+ 80. Ke4 Rc4+ 81. Kd3 Rg4 $18) 79... Kg7 80. Kxf3 Kg8 81. Kg4 Kf7 82. Rf6+ Kg7 83. Rb6) 78... Kg7 {[%emt 0:00:08]} 79. Rf6 {[%emt 0:00:04][%cal Oh3g4] White wants to mate with Kg4!} Rc4 {[%emt 0:00:02]} 80. h5 {[%emt 0:00:06][%cal Bh4h5,Bh5h6][%mdl 32]} Rc1 {[%emt 0:00:07]} 81. Rxf4 {[%emt 0:00:04]} Rh1+ {[%emt 0:00:01]} 82. Kg4 {[%emt 0:00:01]} Rg1+ {[%emt 0:00:01]} 83. Kf5 {[%emt 0:00:01]} Rh1 {[%emt 0:00:01]} 84. h6+ {[%emt 0:00:02] Never resign too early!   Weighted Error Value: White=0.21 (precise) /Black=0.24 (precise) .  Loses game:     	---       	Black=1      Missed win:     	---       	Black=1      Mistake:       	White=8     	Black=9      Inaccurate:     	White=4     	Black=4      OK:         	White=22    	Black=24     Best:        	White=4     	Black=3      Strong:       	White=5     	---} 1-0

[Event "Memorial Ukrainian Chess Warriors 2024"]
[Site "Lviv"]
[Date "2024.03.15"]
[Round "4.9"]
[White "Tretiak, Igor"]
[Black "Mosesov, Danyil"]
[Result "0-1"]
[ECO "B40"]
[WhiteElo "1561"]
[BlackElo "2453"]
[Annotator "TA"]
[PlyCount "94"]
[EventDate "2024.03.06"]
[EventType "swiss"]
[EventCountry "UKR"]
[SourceTitle "playchess.com"]
[Source "ChessBase"]
[SourceQuality "1"]
[TimeControl "600+5"]

{[%evp 9,94,-33,-25,-28,-24,-32,-44,-24,-37,-55,-18,-74,-13,-114,-52,-29,-40,-48,-48,-141,-90,-96,0,0,7,0,0,-68,-65,-91,-37,-284,-269,-308,-302,-284,-228,-401,-419,-479,-483,-459,-459,-456,-398,-513,-325,-855,-879,-922,-908,-1066,-1048,-1852,-1372,-2254,-2295,-29983,-29984,-29992,-29991,-29991,-29992,-29993,-29990,-29990,-29991,-29991,-29987,-29986,-29984,-29991,-29988,-29988,-29988,-29988,-29989,-29989,-29989,-29989,-29989,-29989,-29989,-29992,-29993,-29993,-29994]} 1. e4 {[%emt 0:00:02]} c5 {[%emt 0:00:01]} 2. Nf3 {[%emt 0:00:01]} e6 {[%emt 0:00:00]} 3. Bd3 {[%emt 0:00:02]} Nc6 {[%emt 0:00:24]} 4. O-O {[%emt 0:00:04]} a6 {[%emt 0:00:14]} 5. Re1 {[%emt 0:00:04]} g5 {[%emt 0:00:42]} 6. g3 {[%emt 0:01:07]} h5 {[%emt 0:00:46]} (6... g4 $5 7. Nh4 $8 Be7 $11) 7. Bf1 g4 8. Nh4 {[%emt 0:00:21] Black is slightly better.} Be7 {[%emt 0:02:51]} 9. Ng2 {[%emt 0:00:30]} Nf6 {[%emt 0:00:02]} 10. c3 {[%emt 0:00:20]} (10. d3 $11) 10... d5 {[%emt 0:00:07]} (10... Ne5 $17 11. Be2 c4 (11... Nxe4 12. d4 $11)) 11. e5 {[%emt 0:00:15] [#]} (11. exd5 $11 Nxd5 12. d3) 11... Ne4 {[%emt 0:00:18]} ({Black should play} 11... Nd7 $1 $17 12. d4 Qb6) 12. d3 $15 {[%emt 0:00:50]} Ng5 {[%emt 0:00:33]} 13. Bxg5 {[%emt 0:00:02]} Bxg5 {[%emt 0:00:01]} 14. Na3 {[%emt 0:00:51]} (14. Nd2 $15) 14... b5 {[%emt 0:00:13]} ({Black should try} 14... f6 15. d4 cxd4 16. cxd4 fxe5 17. dxe5 Qc7) 15. d4 $17 {[%emt 0:00:34]} Qb6 {[%emt 0:00:06]} (15... cxd4 $17 16. cxd4 f5) 16. Nc2 $11 {[%emt 0:00:38]} cxd4 {[%emt 0:00:24]} 17. cxd4 {[%emt 0:00:02]} Bd7 {[%emt 0:00:16]} 18. a4 {[%emt 0:01:12]} (18. Nf4 $11 Bxf4 19. gxf4) 18... bxa4 $15 {Black is more active.} 19. Rxa4 {[%emt 0:00:09]} a5 {[%emt 0:00:03]} ({Better is} 19... Qxb2 $17 {[%cal Oc6e5]} 20. Ra1 a5) 20. Na3 $2 {[%emt 0:00:29] Now White is beyond hope.} (20. b4 $15) 20... Nb4 $19 {[%emt 0:00:18]} ({Don't do} 20... Qxb2 21. Nb5 $17) 21. Nb1 {[%emt 0:00:43]} Bxa4 {[%emt 0:00:18]} 22. Qxa4+ {[%emt 0:00:02]} Kf8 {[%emt 0:00:02]} 23. Nc3 $2 {[%emt 0:00:17]} (23. Rd1) 23... Qxd4 {[%emt 0:00:11]} 24. Qd7 {[%emt 0:00:34]} Kg7 {[%emt 0:00:38]} 25. Nb5 {[%emt 0:00:48]} Qb6 {[%emt 0:00:26]} ({Inferior is} 25... Qxb2 26. Nc7 Kg6 27. Nxe6 fxe6 28. Nf4+ Bxf4 29. Qxe6+ Kg7 30. Qf6+ Kg8 31. Qg6+ Kf8 32. Qf6+ Kg8 33. Qg6+ Kf8 34. gxf4 $11 (34. Qf6+ Kg8 $14)) 26. Nd6 Qa7 {[%emt 0:00:38]} 27. Qb5 {[%emt 0:00:31]} Rab8 {[%emt 0:00:16]} 28. Qe2 {[%emt 0:00:02]} (28. Qa4) 28... Nc6 {[%emt 0:00:08] aiming for ...Nd4.} 29. Kh1 {[%emt 0:00:19]} Nd4 {[%emt 0:00:23]} 30. Qd3 {[%emt 0:00:11]} Rxb2 {[%emt 0:00:28]} 31. Rd1 {[%emt 0:00:19] [#]} Rxf2 $1 {[%emt 0:00:16]} 32. Ne3 {[%emt 0:00:17]} (32. h4 gxh3) 32... Nf3 {[%emt 0:00:47][%csl Gf3][%cal Rf2h2]} 33. Bg2 {[%emt 0:00:18]} Qxe3 {[%emt 0:00:03] Black mates.} 34. Bxf3 {[%emt 0:00:09]} Qxf3+ {[%emt 0:00:07]} 35. Qxf3 {[%emt 0:00:03]} gxf3 {[%emt 0:00:02]} 36. h4 {[%emt 0:00:04]} Be7 {[%emt 0:00:05]} 37. Kg1 {[%emt 0:00:05]} Rg2+ {[%emt 0:00:01]} 38. Kh1 {[%emt 0:00:08]} Bxd6 {[%emt 0:00:03]} 39. exd6 {[%emt 0:00:01]} Rd8 {[%emt 0:00:01]} 40. g4 {[%emt 0:00:06]} Rxg4 {[%emt 0:00:03]} 41. Rf1 {[%emt 0:00:11]} Rxd6 {[%emt 0:00:02]} 42. Rxf3 {[%emt 0:00:02]} Rb6 {[%emt 0:00:01]} 43. Kh2 {[%emt 0:00:07]} Rxh4+ {[%emt 0:00:04]} 44. Kg3 {[%emt 0:00:02]} Rg4+ {[%emt 0:00:01]} 45. Kh3 {[%emt 0:00:01]} Rb1 {[%emt 0:00:04][%cal Rb1h1]} 46. Rg3 {[%emt 0:00:12]} Rxg3+ {[%emt 0:00:02]} 47. Kxg3 {[%emt 0:00:01]} a4 {[%emt 0:00:00] Weighted Error Value: White=1.18/Black=0.41.  Loses game:     	White=1     	---        Mistake:       	White=6     	Black=5      Inaccurate:     	White=1     	Black=2      OK:         	White=8     	Black=7      Best:        	---       	Black=3} 0-1